[Event "IV Pullman Rapid 2022"]
[Site "Riga, Latvia"]
[Date "2022.02.19"]
[Round "2.3"]
[White "Golubovskis, Maksims"]
[Black "Andrusevics, Jegors"]
[Result "1-0"]
[TimeControl "600+5"]
[WhiteTitle "FM"]
[WhiteElo "2185"]
[BlackElo "1665"]

1. e4 {[%clk 00:10:01]} {[%emt 00:00:08]} e6 {[%clk 00:10:07]} {[%emt
00:00:04]} 2. d4 {[%clk 00:10:03]} {[%emt 00:00:02]} d5 {[%clk 00:10:10]}
{[%emt 00:00:03]} 3. Bd3 {[%clk 00:09:50]} {[%emt 00:00:17]} Nf6 {[%clk
00:09:17]} {[%emt 00:00:59]} 4. e5 {[%clk 00:09:52]} {[%emt 00:00:02]} Nfd7
{[%clk 00:09:20]} {[%emt 00:00:02]} 5. Ne2 {[%clk 00:09:51]} {[%emt 00:00:05]}
c5 {[%clk 00:09:18]} {[%emt 00:00:09]} 6. c3 {[%clk 00:09:54]} {[%emt
00:00:01]} Nc6 {[%clk 00:09:13]} {[%emt 00:00:11]} 7. Nd2 {[%clk 00:09:54]}
{[%emt 00:00:04]} Be7 {[%clk 00:08:09]} {[%emt 00:01:09]} 8. O-O {[%clk
00:09:54]} {[%emt 00:00:03]} c4 {[%clk 00:07:11]} {[%emt 00:01:06]} 9. Bc2
{[%clk 00:09:27]} {[%emt 00:00:32]} b5 {[%clk 00:06:52]} {[%emt 00:00:23]} 10.
f4 {[%clk 00:09:28]} {[%emt 00:00:04]} Nb6 {[%clk 00:06:51]} {[%emt 00:00:07]}
11. Ng3 {[%clk 00:08:47]} {[%emt 00:00:44]} g6 {[%clk 00:06:24]} {[%emt
00:00:34]} 12. b3 {[%clk 00:07:41]} {[%emt 00:01:11]} b4 {[%clk 00:05:42]}
{[%emt 00:00:47]} 13. cxb4 {[%clk 00:07:44]} {[%emt 00:00:02]} Bxb4 {[%clk
00:05:15]} {[%emt 00:00:32]} 14. Nf3 {[%clk 00:07:34]} {[%emt 00:00:14]} Ba6
{[%clk 00:05:01]} {[%emt 00:00:20]} 15. Rf2 {[%clk 00:07:03]} {[%emt 00:00:35]}
Nc8 {[%clk 00:04:05]} {[%emt 00:01:01]} 16. bxc4 {[%clk 00:07:00]} {[%emt
00:00:08]} Bxc4 {[%clk 00:03:33]} {[%emt 00:00:37]} 17. Ba4 {[%clk 00:07:00]}
{[%emt 00:00:04]} Qd7 {[%clk 00:03:07]} {[%emt 00:00:33]} 18. Nd2 {[%clk
00:06:34]} {[%emt 00:00:31]} Ba6 {[%clk 00:02:42]} {[%emt 00:00:30]} 19. f5
{[%clk 00:05:21]} {[%emt 00:01:19]} exf5 {[%clk 00:02:20]} {[%emt 00:00:27]} 20.
Qb3 {[%clk 00:04:21]} {[%emt 00:01:05]} Bxd2 {[%clk 00:02:05]} {[%emt
00:00:21]} 21. Bxd2 {[%clk 00:04:22]} {[%emt 00:00:03]} Nb6 {[%clk 00:02:09]}
22. Bb4 {[%clk 00:04:05]} {[%emt 00:00:22]} Nxa4 {[%clk 00:01:43]} {[%emt
00:00:30]} 23. Qxa4 {[%clk 00:04:08]} {[%emt 00:00:03]} Nxb4 {[%clk 00:01:39]}
{[%emt 00:00:09]} 24. Qxb4 {[%clk 00:04:09]} {[%emt 00:00:04]} Bc4 {[%clk
00:01:19]} {[%emt 00:00:25]} 25. Rb1 {[%clk 00:03:05]} {[%emt 00:01:09]} Qe7
{[%clk 00:01:06]} {[%emt 00:00:18]} 26. Qa4+ {[%clk 00:02:31]} {[%emt
00:00:40]} Kf8 {[%clk 00:01:01]} {[%emt 00:00:09]} 27. Qc6 {[%clk 00:02:20]}
{[%emt 00:00:16]} Kg7 {[%clk 00:01:02]} {[%emt 00:00:04]} 28. Rxf5 {[%clk
00:02:23]} {[%emt 00:00:02]} Bd3 {[%clk 00:00:54]} {[%emt 00:00:13]} 29. Rbf1
{[%clk 00:01:45]} {[%emt 00:00:42]} Bxf1 {[%clk 00:00:54]} {[%emt 00:00:06]} 30.
Rxf1 {[%clk 00:01:08]} {[%emt 00:00:42]} Qe6 {[%clk 00:00:55]} {[%emt
00:00:04]} 31. Qc1 {[%clk 00:00:57]} {[%emt 00:00:17]} Rac8 {[%clk 00:00:52]}
{[%emt 00:00:07]} 32. Qg5 {[%clk 00:01:01]} Rhf8 {[%clk 00:00:31]} {[%emt
00:00:27]} 33. Rf6 {[%clk 00:00:35]} {[%emt 00:00:31]} h6 {[%clk 00:00:23]}
{[%emt 00:00:13]} 34. Nh5+ {[%clk 00:00:14]} {[%emt 00:00:26]} Kh7 {[%clk
00:00:26]} {[%emt 00:00:01]} 35. Qf4 {[%clk 00:00:13]} {[%emt 00:00:06]} Qe7
{[%clk 00:00:16]} {[%emt 00:00:15]} 36. h3 {[%clk 00:00:17]} {[%emt 00:00:02]}
Rg8 {[%clk 00:00:11]} {[%emt 00:00:10]} 37. Rxf7+ {[%clk 00:00:21]} {[%emt
00:00:02]} 1-0

[Event "IV Pullman Rapid 2022"]
[Site "Riga, Latvia"]
[Date "2022.02.19"]
[Round "2.4"]
[White "Bude, Toms"]
[Black "Kretainis, Kristaps"]
[Result "0-1"]
[TimeControl "600+5"]
[WhiteElo "1636"]
[BlackElo "2157"]

1. e4 {[%clk 00:10:07]} {[%emt 00:00:02]} b6 {[%clk 00:10:10]} {[%emt
00:00:02]} 2. d4 {[%emt 00:00:02]} Bb7 3. Nc3 {[%clk 00:10:13]} {[%emt
00:00:01]} e6 {[%clk 00:10:18]} 4. a3 {[%clk 00:10:16]} {[%emt 00:00:03]} Nf6
{[%clk 00:10:22]} {[%emt 00:00:01]} 5. Bd3 {[%clk 00:10:14]} {[%emt 00:00:07]}
d5 {[%clk 00:10:26]} {[%emt 00:00:01]} 6. Bg5 {[%clk 00:09:55]} {[%emt
00:00:23]} Be7 {[%clk 00:10:15]} {[%emt 00:00:17]} 7. e5 {[%clk 00:09:59]}
{[%emt 00:00:02]} Ne4 {[%clk 00:09:50]} {[%emt 00:00:30]} 8. Bxe7 {[%clk
00:09:59]} {[%emt 00:00:04]} Qxe7 {[%clk 00:09:46]} {[%emt 00:00:10]} 9. Nf3
{[%clk 00:09:29]} {[%emt 00:00:35]} Nxc3 {[%clk 00:09:48]} {[%emt 00:00:03]} 10.
bxc3 {[%clk 00:09:32]} {[%emt 00:00:02]} O-O {[%clk 00:09:48]} {[%emt
00:00:06]} 11. O-O {[%emt 00:00:03]} c5 {[%emt 00:00:01]} 12. Re1 {[%clk
00:08:30]} {[%emt 00:01:07]} Nc6 {[%clk 00:09:56]} {[%emt 00:00:02]} 13. Qd2
{[%clk 00:08:07]} {[%emt 00:00:27]} Rfc8 {[%clk 00:09:44]} {[%emt 00:00:17]} 14.
Ng5 {[%clk 00:06:50]} {[%emt 00:01:22]} h6 {[%clk 00:09:48]} {[%emt 00:00:02]}
15. Nf3 {[%clk 00:06:48]} {[%emt 00:00:07]} Rc7 {[%clk 00:09:42]} {[%emt
00:00:11]} 16. Qf4 {[%clk 00:06:42]} {[%emt 00:00:10]} Rac8 {[%clk 00:08:30]}
{[%emt 00:01:18]} 17. g4 {[%clk 00:06:32]} {[%emt 00:00:15]} g5 {[%clk
00:08:15]} {[%emt 00:00:19]} 18. Qg3 {[%clk 00:06:27]} {[%emt 00:00:10]} Kg7
{[%clk 00:08:19]} {[%emt 00:00:01]} 19. Qh3 {[%clk 00:05:30]} {[%emt 00:01:02]}
Rh8 {[%clk 00:07:48]} {[%emt 00:00:36]} 20. Qh5 {[%clk 00:05:23]} {[%emt
00:00:11]} Nb8 {[%clk 00:06:28]} {[%emt 00:01:26]} 21. h4 {[%clk 00:05:24]}
{[%emt 00:00:04]} gxh4 {[%clk 00:06:23]} {[%emt 00:00:10]} 22. Nxh4 {[%clk
00:05:09]} {[%emt 00:00:20]} Qg5 {[%clk 00:06:26]} {[%emt 00:00:03]} 23. Re3
{[%clk 00:04:00]} {[%emt 00:01:14]} Ba6 {[%clk 00:06:06]} {[%emt 00:00:26]} 24.
Rg3 {[%clk 00:03:20]} {[%emt 00:00:44]} Bxd3 {[%clk 00:06:07]} {[%emt
00:00:04]} 25. cxd3 {[%clk 00:02:42]} {[%emt 00:00:43]} cxd4 {[%clk 00:06:10]}
{[%emt 00:00:02]} 26. Nf5+ {[%clk 00:02:03]} {[%emt 00:00:45]} Kf8 {[%clk
00:05:57]} {[%emt 00:00:18]} 27. Nxd4 {[%emt 00:00:13]} Qxh5 {[%clk 00:05:58]}
{[%emt 00:00:05]} 28. gxh5 {[%clk 00:01:57]} {[%emt 00:00:02]} Rxc3 {[%clk
00:05:26]} {[%emt 00:00:37]} 29. Rf3 {[%clk 00:01:56]} {[%emt 00:00:06]} Rg8+
{[%clk 00:05:19]} {[%emt 00:00:11]} 30. Kf1 {[%clk 00:01:45]} {[%emt 00:00:16]}
Ke7 {[%clk 00:05:22]} {[%emt 00:00:02]} 31. Ke2 {[%clk 00:01:41]} {[%emt
00:00:10]} Rg5 {[%clk 00:05:14]} {[%emt 00:00:13]} 32. Nb5 {[%clk 00:01:22]}
{[%emt 00:00:24]} Rc5 {[%clk 00:05:14]} {[%emt 00:00:04]} 33. Nd6 {[%clk
00:01:00]} {[%emt 00:00:28]} Rxe5+ {[%clk 00:04:53]} {[%emt 00:00:25]} 0-1

[Event "IV Pullman Rapid 2022"]
[Site "Riga, Latvia"]
[Date "2022.02.19"]
[Round "3.1"]
[White "Mikelsons, Mikelis-Emils"]
[Black "Shirov, Alexei"]
[Result "0-1"]
[TimeControl "600+5"]
[BlackTitle "GM"]
[WhiteElo "1891"]
[BlackElo "2614"]

1. d4 {[%clk 00:10:09]} Nf6 {[%clk 00:09:51]} {[%emt 00:00:19]} 2. c4 {[%clk
00:10:12]} {[%emt 00:00:02]} g6 {[%clk 00:09:55]} {[%emt 00:00:01]} 3. Nc3
{[%clk 00:10:15]} {[%emt 00:00:02]} d5 {[%clk 00:09:58]} {[%emt 00:00:01]} 4.
Bf4 {[%clk 00:10:06]} {[%emt 00:00:14]} Bg7 {[%clk 00:09:45]} {[%emt 00:00:18]}
5. Rc1 {[%clk 00:10:07]} {[%emt 00:00:04]} O-O {[%clk 00:09:28]} {[%emt
00:00:22]} 6. e3 {[%clk 00:10:05]} {[%emt 00:00:07]} c5 {[%clk 00:08:45]}
{[%emt 00:00:48]} 7. dxc5 {[%clk 00:10:08]} {[%emt 00:00:03]} Na6 {[%clk
00:08:47]} {[%emt 00:00:03]} 8. cxd5 {[%clk 00:08:47]} {[%emt 00:01:27]} Nxc5
{[%clk 00:08:44]} {[%emt 00:00:08]} 9. Bc4 {[%clk 00:08:02]} {[%emt 00:00:49]}
Qb6 {[%clk 00:07:23]} {[%emt 00:01:26]} 10. Nge2 {[%clk 00:07:35]} {[%emt
00:00:33]} Qb4 {[%clk 00:06:26]} {[%emt 00:01:01]} 11. b3 {[%clk 00:05:17]}
{[%emt 00:02:23]} a6 {[%clk 00:02:50]} {[%emt 00:03:41]} 12. O-O {[%clk
00:04:27]} {[%emt 00:00:56]} Bd7 {[%clk 00:02:53]} {[%emt 00:00:01]} 13. Bc7
{[%clk 00:03:46]} {[%emt 00:00:46]} Nfe4 {[%clk 00:01:46]} {[%emt 00:01:12]} 14.
Nxe4 {[%clk 00:01:20]} {[%emt 00:02:30]} Nxe4 {[%clk 00:01:49]} {[%emt
00:00:02]} 15. Bd3 {[%clk 00:01:10]} {[%emt 00:00:15]} Nd6 {[%clk 00:01:32]}
{[%emt 00:00:22]} 16. e4 {[%clk 00:00:32]} {[%emt 00:00:43]} Rac8 {[%clk
00:01:01]} {[%emt 00:00:36]} 17. Bxd6 {[%clk 00:00:17]} {[%emt 00:00:21]} exd6
{[%clk 00:00:52]} {[%emt 00:00:13]} 18. f4 {[%clk 00:00:10]} {[%emt 00:00:12]}
Rxc1 {[%clk 00:00:51]} {[%emt 00:00:07]} 19. Qxc1 {[%clk 00:00:13]} {[%emt
00:00:02]} Rc8 {[%clk 00:00:55]} 20. Qe3 {[%clk 00:00:14]} {[%emt 00:00:04]}
Qa5 {[%clk 00:00:43]} {[%emt 00:00:17]} 21. Bb1 {[%clk 00:00:14]} {[%emt
00:00:06]} Bb5 {[%clk 00:00:38]} {[%emt 00:00:09]} 22. Rd1 {[%clk 00:00:15]}
{[%emt 00:00:04]} Bxe2 {[%clk 00:00:17]} {[%emt 00:00:26]} 23. Qxe2 {[%clk
00:00:19]} Rc3 {[%clk 00:00:18]} {[%emt 00:00:04]} 24. e5 {[%clk 00:00:13]}
{[%emt 00:00:12]} Qc5+ {[%clk 00:00:09]} {[%emt 00:00:13]} 25. Kh1 {[%clk
00:00:16]} {[%emt 00:00:02]} dxe5 {[%clk 00:00:10]} {[%emt 00:00:04]} 26. d6
{[%clk 00:00:15]} {[%emt 00:00:06]} Bf6 {[%clk 00:00:07]} {[%emt 00:00:08]} 27.
d7 {[%clk 00:00:18]} {[%emt 00:00:02]} Bd8 {[%clk 00:00:10]} {[%emt 00:00:02]}
28. Qxe5 {[%clk 00:00:20]} {[%emt 00:00:03]} Qxe5 {[%clk 00:00:13]} {[%emt
00:00:02]} 29. fxe5 {[%clk 00:00:23]} {[%emt 00:00:01]} Kf8 {[%clk 00:00:17]}
{[%emt 00:00:02]} 30. Be4 {[%clk 00:00:18]} {[%emt 00:00:10]} b5 {[%clk
00:00:20]} {[%emt 00:00:02]} 31. Bb7 {[%clk 00:00:21]} {[%emt 00:00:02]} a5
{[%clk 00:00:22]} {[%emt 00:00:03]} 32. Kg1 {[%clk 00:00:13]} {[%emt 00:00:13]}
Ke7 {[%clk 00:00:22]} {[%emt 00:00:05]} 33. Rd6 {[%clk 00:00:14]} {[%emt
00:00:03]} Rc1+ {[%clk 00:00:22]} {[%emt 00:00:06]} 34. Kf2 {[%clk 00:00:19]}
Rc2+ {[%clk 00:00:25]} {[%emt 00:00:01]} 35. Kf3 {[%clk 00:00:20]} {[%emt
00:00:03]} Rxa2 {[%clk 00:00:28]} {[%emt 00:00:02]} 36. Bc6 {[%clk 00:00:12]}
{[%emt 00:00:13]} a4 {[%clk 00:00:26]} {[%emt 00:00:07]} 37. Bxb5 {[%emt
00:00:12]} axb3 {[%emt 00:00:03]} 38. Bc4 {[%emt 00:00:02]} Ra3 {[%emt
00:00:04]} 0-1

[Event "IV Pullman Rapid 2022"]
[Site "Riga, Latvia"]
[Date "2022.02.19"]
[Round "3.2"]
[White "Mustaps, Matiss"]
[Black "Miles, Jana"]
[Result "1-0"]
[TimeControl "600+5"]
[WhiteTitle "FM"]
[WhiteElo "2393"]
[BlackElo "1887"]

1. e4 {[%clk 00:10:06]} {[%emt 00:00:03]} c6 {[%clk 00:10:07]} {[%emt
00:00:02]} 2. d4 {[%clk 00:10:10]} {[%emt 00:00:02]} d5 {[%clk 00:10:11]}
{[%emt 00:00:02]} 3. Nc3 {[%clk 00:10:13]} {[%emt 00:00:02]} g6 {[%clk
00:10:09]} {[%emt 00:00:07]} 4. h3 {[%clk 00:10:12]} {[%emt 00:00:06]} Bg7
{[%clk 00:10:12]} {[%emt 00:00:01]} 5. Nf3 {[%clk 00:10:15]} {[%emt 00:00:02]}
dxe4 {[%clk 00:09:59]} {[%emt 00:00:18]} 6. Nxe4 {[%clk 00:10:18]} {[%emt
00:00:02]} Nf6 {[%clk 00:09:54]} {[%emt 00:00:10]} 7. Nxf6+ {[%clk 00:10:21]}
{[%emt 00:00:03]} Bxf6 {[%clk 00:09:57]} {[%emt 00:00:02]} 8. Bh6 {[%clk
00:09:50]} {[%emt 00:00:35]} Qa5+ {[%clk 00:09:33]} {[%emt 00:00:29]} 9. c3
{[%clk 00:08:49]} {[%emt 00:01:06]} Qh5 {[%clk 00:09:32]} {[%emt 00:00:06]} 10.
Qd2 {[%clk 00:08:21]} {[%emt 00:00:33]} Rg8 {[%clk 00:08:18]} {[%emt 00:01:17]}
11. Be3 {[%clk 00:07:36]} {[%emt 00:00:51]} Nd7 {[%clk 00:07:22]} {[%emt
00:01:01]} 12. g4 {[%clk 00:07:29]} {[%emt 00:00:12]} Qa5 {[%clk 00:07:14]}
{[%emt 00:00:10]} 13. Bg2 {[%clk 00:07:05]} {[%emt 00:00:30]} Bg7 {[%clk
00:07:08]} {[%emt 00:00:12]} 14. O-O {[%clk 00:06:53]} {[%emt 00:00:18]} Nf6
{[%clk 00:07:10]} {[%emt 00:00:03]} 15. Rfe1 {[%clk 00:06:52]} {[%emt
00:00:06]} Bd7 {[%clk 00:06:33]} {[%emt 00:00:41]} 16. b4 {[%clk 00:06:46]}
{[%emt 00:00:12]} Qd8 {[%clk 00:06:14]} {[%emt 00:00:24]} 17. c4 {[%clk
00:06:44]} {[%emt 00:00:07]} h5 {[%clk 00:05:52]} {[%emt 00:00:26]} 18. g5
{[%clk 00:06:24]} {[%emt 00:00:25]} Ne4 {[%clk 00:05:41]} {[%emt 00:00:16]} 19.
Qc2 {[%clk 00:06:28]} {[%emt 00:00:02]} Nd6 {[%clk 00:05:44]} {[%emt 00:00:01]}
20. Bf4 {[%clk 00:06:16]} {[%emt 00:00:18]} Kf8 {[%clk 00:05:34]} {[%emt
00:00:14]} 21. Rad1 {[%clk 00:05:53]} {[%emt 00:00:29]} Bf5 {[%clk 00:05:33]}
{[%emt 00:00:05]} 22. Qe2 {[%clk 00:05:54]} {[%emt 00:00:04]} Ne4 {[%clk
00:05:15]} {[%emt 00:00:24]} 23. Qe3 {[%clk 00:05:43]} {[%emt 00:00:17]} Qb6
{[%clk 00:04:40]} {[%emt 00:00:39]} 24. Nh4 {[%clk 00:05:37]} {[%emt 00:00:11]}
Rd8 {[%clk 00:03:12]} {[%emt 00:01:31]} 25. Bxe4 {[%clk 00:05:40]} {[%emt
00:00:04]} Bxd4 {[%clk 00:03:12]} {[%emt 00:00:06]} 26. Rxd4 {[%clk 00:02:58]}
{[%emt 00:02:46]} Qxd4 {[%clk 00:02:26]} {[%emt 00:00:51]} 27. Bxf5 {[%clk
00:02:58]} {[%emt 00:00:06]} Qxe3 {[%clk 00:02:21]} {[%emt 00:00:09]} 28. Bxe3
{[%clk 00:02:56]} {[%emt 00:00:07]} gxf5 {[%clk 00:02:25]} {[%emt 00:00:02]} 29.
Nxf5 {[%clk 00:02:55]} {[%emt 00:00:05]} e6 {[%clk 00:02:15]} {[%emt 00:00:15]}
30. Bc5+ {[%clk 00:02:36]} {[%emt 00:00:24]} Ke8 {[%clk 00:02:16]} {[%emt
00:00:04]} 31. Nd6+ {[%clk 00:02:40]} {[%emt 00:00:02]} Kd7 {[%clk 00:02:15]}
{[%emt 00:00:06]} 32. Nxf7 {[%clk 00:02:43]} {[%emt 00:00:02]} Rde8 {[%clk
00:02:09]} {[%emt 00:00:11]} 33. Rd1+ {[%clk 00:02:15]} {[%emt 00:00:33]} Kc7
{[%clk 00:02:10]} {[%emt 00:00:04]} 34. Bd6+ {[%clk 00:02:19]} {[%emt
00:00:02]} Kb6 {[%clk 00:02:03]} {[%emt 00:00:12]} 35. h4 {[%clk 00:02:22]}
{[%emt 00:00:02]} a5 {[%clk 00:01:57]} {[%emt 00:00:11]} 36. a3 {[%clk
00:02:24]} {[%emt 00:00:04]} axb4 {[%clk 00:01:54]} {[%emt 00:00:08]} 37. axb4
{[%clk 00:02:27]} {[%emt 00:00:01]} Ra8 {[%clk 00:01:57]} {[%emt 00:00:01]} 38.
Bc5+ {[%clk 00:02:13]} {[%emt 00:00:20]} Kc7 {[%clk 00:01:56]} {[%emt
00:00:07]} 39. Ne5 {[%clk 00:02:17]} {[%emt 00:00:01]} Rg7 {[%clk 00:01:50]}
{[%emt 00:00:10]} 40. g6 {[%clk 00:02:07]} {[%emt 00:00:16]} Rag8 {[%clk
00:01:43]} {[%emt 00:00:10]} 41. Kf1 {[%clk 00:01:59]} {[%emt 00:00:14]} b6
{[%clk 00:01:47]} {[%emt 00:00:02]} 42. Be3 {[%clk 00:01:58]} {[%emt 00:00:05]}
Ra8 {[%clk 00:01:39]} {[%emt 00:00:13]} 43. Bh6 {[%clk 00:01:58]} {[%emt
00:00:05]} Re7 {[%clk 00:01:35]} {[%emt 00:00:09]} 44. Bg5 {[%clk 00:02:02]}
{[%emt 00:00:02]} Rg7 {[%clk 00:01:28]} {[%emt 00:00:11]} 45. Bf6 {[%clk
00:02:06]} {[%emt 00:00:02]} Rgg8 {[%clk 00:01:26]} {[%emt 00:00:07]} 46. Rd7+
{[%clk 00:02:09]} {[%emt 00:00:02]} Kc8 {[%clk 00:01:30]} 47. Rf7 {[%clk
00:02:13]} {[%emt 00:00:02]} c5 {[%clk 00:01:27]} {[%emt 00:00:08]} 48. b5
{[%clk 00:01:56]} {[%emt 00:00:22]} Ra3 {[%clk 00:01:20]} {[%emt 00:00:08]} 49.
Nc6 {[%clk 00:01:50]} {[%emt 00:00:15]} Re8 {[%clk 00:00:59]} {[%emt 00:00:26]}
50. Be5 {[%clk 00:01:53]} {[%emt 00:00:03]} 1-0

[Event "IV Pullman Rapid 2022"]
[Site "Riga, Latvia"]
[Date "2022.02.19"]
[Round "3.3"]
[White "Vingris, Mikelis"]
[Black "Golubovskis, Maksims"]
[Result "0-1"]
[TimeControl "600+5"]
[BlackTitle "FM"]
[WhiteElo "1889"]
[BlackElo "2185"]

1. e4 {[%clk 00:10:08]} {[%emt 00:00:01]} c5 {[%clk 00:09:56]} {[%emt
00:00:12]} 2. Nf3 {[%clk 00:10:11]} {[%emt 00:00:04]} d6 {[%clk 00:09:55]}
{[%emt 00:00:06]} 3. d4 {[%clk 00:10:15]} {[%emt 00:00:02]} cxd4 {[%clk
00:09:57]} {[%emt 00:00:02]} 4. Nxd4 {[%clk 00:10:18]} {[%emt 00:00:03]} Nf6
{[%clk 00:09:57]} {[%emt 00:00:05]} 5. Nc3 {[%clk 00:10:21]} {[%emt 00:00:02]}
Nc6 {[%clk 00:09:56]} {[%emt 00:00:05]} 6. g3 {[%clk 00:09:38]} {[%emt
00:00:49]} e5 {[%clk 00:09:26]} {[%emt 00:00:35]} 7. Nb3 {[%clk 00:09:31]}
{[%emt 00:00:12]} Be7 {[%clk 00:09:05]} {[%emt 00:00:25]} 8. Bg2 {[%clk
00:09:30]} {[%emt 00:00:06]} O-O {[%clk 00:09:08]} {[%emt 00:00:02]} 9. O-O
{[%clk 00:09:30]} {[%emt 00:00:06]} Be6 {[%clk 00:09:06]} {[%emt 00:00:06]} 10.
Nd5 {[%clk 00:09:27]} {[%emt 00:00:09]} Rc8 {[%clk 00:08:34]} {[%emt 00:00:37]}
11. c3 {[%clk 00:09:19]} {[%emt 00:00:14]} Bxd5 {[%clk 00:06:28]} {[%emt
00:02:11]} 12. exd5 {[%clk 00:09:22]} {[%emt 00:00:02]} Nb8 {[%clk 00:06:21]}
{[%emt 00:00:10]} 13. Be3 {[%clk 00:09:22]} {[%emt 00:00:06]} Nbd7 {[%clk
00:05:39]} {[%emt 00:00:47]} 14. Rc1 {[%clk 00:08:58]} {[%emt 00:00:29]} Nb6
{[%clk 00:05:08]} {[%emt 00:00:37]} 15. Bxb6 {[%clk 00:08:16]} {[%emt
00:00:48]} Qxb6 {[%clk 00:05:12]} {[%emt 00:00:01]} 16. Qd3 {[%clk 00:08:09]}
{[%emt 00:00:12]} g6 {[%clk 00:03:55]} {[%emt 00:01:22]} 17. Kh1 {[%clk
00:07:29]} {[%emt 00:00:44]} Ng4 {[%clk 00:03:41]} {[%emt 00:00:19]} 18. Qe2
{[%clk 00:07:11]} {[%emt 00:00:24]} f5 {[%clk 00:03:45]} {[%emt 00:00:01]} 19.
h3 {[%clk 00:07:07]} {[%emt 00:00:08]} Nf6 {[%clk 00:03:48]} 20. f4 {[%clk
00:06:42]} {[%emt 00:00:32]} e4 {[%clk 00:03:04]} {[%emt 00:00:50]} 21. c4
{[%clk 00:06:29]} {[%emt 00:00:18]} Nh5 {[%clk 00:03:05]} {[%emt 00:00:03]} 22.
Kh2 {[%clk 00:06:26]} {[%emt 00:00:08]} a5 {[%clk 00:03:02]} {[%emt 00:00:08]}
23. Qd2 {[%clk 00:05:55]} {[%emt 00:00:36]} Bf6 {[%clk 00:02:37]} {[%emt
00:00:29]} 24. g4 {[%clk 00:05:28]} {[%emt 00:00:32]} fxg4 {[%clk 00:02:37]}
{[%emt 00:00:05]} 25. c5 {[%clk 00:04:10]} {[%emt 00:01:24]} Qd8 {[%clk
00:01:25]} {[%emt 00:01:17]} 26. Nd4 {[%clk 00:03:40]} {[%emt 00:00:34]} Bxd4
{[%clk 00:01:10]} {[%emt 00:00:20]} 27. Qxd4 {[%clk 00:03:42]} {[%emt
00:00:03]} Qh4 {[%clk 00:00:46]} {[%emt 00:00:26]} 28. Rc3 {[%clk 00:02:16]}
{[%emt 00:01:34]} dxc5 {[%clk 00:00:29]} {[%emt 00:00:22]} 29. Qxe4 {[%clk
00:01:54]} {[%emt 00:00:27]} Nxf4 {[%clk 00:00:27]} {[%emt 00:00:06]} 30. d6
{[%clk 00:00:39]} {[%emt 00:01:21]} gxh3 {[%clk 00:00:25]} {[%emt 00:00:07]} 31.
Bf3 {[%clk 00:00:20]} {[%emt 00:00:24]} Qf6 {[%clk 00:00:12]} {[%emt 00:00:18]}
32. d7 {[%clk 00:00:13]} {[%emt 00:00:11]} Rcd8 {[%clk 00:00:17]} 33. Bg4
{[%clk 00:00:15]} {[%emt 00:00:03]} Qd6 {[%clk 00:00:16]} {[%emt 00:00:06]} 34.
Rd1 {[%clk 00:00:15]} {[%emt 00:00:05]} Nd3+ {[%clk 00:00:14]} {[%emt
00:00:06]} 35. Kxh3 {[%clk 00:00:07]} {[%emt 00:00:14]} Nf2+ {[%clk 00:00:17]}
{[%emt 00:00:03]} 36. Kg2 {[%clk 00:00:10]} Nxe4 {[%clk 00:00:13]} {[%emt
00:00:09]} 37. Rxd6 {[%clk 00:00:13]} {[%emt 00:00:02]} Nxd6 {[%clk 00:00:18]}
38. Be6+ {[%clk 00:00:16]} {[%emt 00:00:02]} Kg7 {[%clk 00:00:22]} {[%emt
00:00:01]} 39. Rxc5 {[%clk 00:00:20]} {[%emt 00:00:01]} Kf6 {[%clk 00:00:23]}
{[%emt 00:00:04]} 40. Bh3 {[%clk 00:00:23]} {[%emt 00:00:01]} Rf7 {[%clk
00:00:22]} {[%emt 00:00:07]} 41. Rxa5 {[%clk 00:00:22]} {[%emt 00:00:06]} Nf5
{[%clk 00:00:22]} {[%emt 00:00:05]} 0-1